[Event "Late-Titled-Tuesday-Blitz-August-29-2023"]
[Site "Chess.com"]
[Date "2023.08.29"]
[Round "9"]
[White "MathiasCasalaspro"]
[Black "ShrookWafa"]
[Result "1-0"]
[WhiteElo "2290"]
[BlackElo "2405"]
[TimeControl "180+1"]
[EndTime "15:37:04 PDT"]
[Termination "MathiasCasalaspro won by resignation"]

1. e4 {[%clk 0:03:00.9]} 1... c5 {[%clk 0:02:59.7]} 2. Nf3 {[%clk 0:02:59.5]}
2... Nc6 {[%clk 0:02:59.8]} 3. d3 {[%clk 0:02:59.9]} 3... g6 {[%clk 0:02:59.7]}
4. g3 {[%clk 0:02:59.8]} 4... Bg7 {[%clk 0:03:00]} 5. Bg2 {[%clk 0:03:00.4]}
5... e6 {[%clk 0:02:59.6]} 6. O-O {[%clk 0:03:00.5]} 6... Nge7 {[%clk
0:02:59.8]} 7. Re1 {[%clk 0:02:58.6]} 7... O-O {[%clk 0:02:59.4]} 8. c3 {[%clk
0:02:58.2]} 8... d5 {[%clk 0:02:59.2]} 9. e5 {[%clk 0:02:55.3]} 9... d4 {[%clk
0:02:59]} 10. c4 {[%clk 0:02:54.7]} 10... Bd7 {[%clk 0:02:57]} 11. Bf4 {[%clk
0:02:52.3]} 11... Rc8 {[%clk 0:02:56.6]} 12. a3 {[%clk 0:02:48]} 12... Nf5
{[%clk 0:02:56.8]} 13. Nbd2 {[%clk 0:02:44.4]} 13... Bh6 {[%clk 0:02:41.2]} 14.
Ne4 {[%clk 0:02:27.1]} 14... Ng7 {[%clk 0:02:38.1]} 15. Bxh6 {[%clk 0:02:23.8]}
1-0

[Event "Late-Titled-Tuesday-Blitz-August-29-2023"]
[Site "Chess.com"]
[Date "2023.08.29"]
[Round "9"]
[White "powermove"]
[Black "FeketeBarika"]
[Result "0-1"]
[WhiteElo "2088"]
[BlackElo "2361"]
[TimeControl "180+1"]
[EndTime "15:37:42 PDT"]
[Termination "FeketeBarika won by resignation"]

1. e4 {[%clk 0:03:00.9]} 1... e6 {[%clk 0:02:55.6]} 2. d3 {[%clk 0:02:59.2]}
2... d5 {[%clk 0:02:53.8]} 3. Nd2 {[%clk 0:02:59.8]} 3... Nf6 {[%clk 0:02:53.2]}
4. Ngf3 {[%clk 0:02:59.5]} 4... b6 {[%clk 0:02:53.4]} 5. g3 {[%clk 0:02:59.2]}
5... dxe4 {[%clk 0:02:52.9]} 6. dxe4 {[%clk 0:02:58.6]} 6... Bb7 {[%clk
0:02:52.6]} 7. Qe2 {[%clk 0:02:43.9]} 7... Ba6 {[%clk 0:02:50.7]} 8. c4 {[%clk
0:02:42.4]} 8... Nc6 {[%clk 0:02:50.4]} 9. Bg2 {[%clk 0:02:41.2]} 9... e5 {[%clk
0:02:50.3]} 10. O-O {[%clk 0:02:39.9]} 10... Bb4 {[%clk 0:02:46.9]} 11. Rd1
{[%clk 0:02:36.4]} 11... Qe7 {[%clk 0:02:46.7]} 12. a3 {[%clk 0:02:35.3]} 12...
Bxd2 {[%clk 0:02:46.5]} 13. Bxd2 {[%clk 0:02:35.3]} 13... Bc8 {[%clk 0:02:35.2]}
14. h3 {[%clk 0:02:30.3]} 14... a5 {[%clk 0:02:29.8]} 15. b3 {[%clk 0:02:26.1]}
15... O-O {[%clk 0:02:27.3]} 16. Bc3 {[%clk 0:02:25.7]} 16... Nd7 {[%clk
0:02:17.4]} 17. Rd6 {[%clk 0:02:20.4]} 17... cxd6 {[%clk 0:02:14.5]} 0-1

[Event "Late-Titled-Tuesday-Blitz-August-29-2023"]
[Site "Chess.com"]
[Date "2023.08.29"]
[Round "9"]
[White "XiaoKangZhong"]
[Black "Young_Catalan_Player09"]
[Result "1-0"]
[WhiteElo "2549"]
[BlackElo "2438"]
[TimeControl "180+1"]
[EndTime "15:38:29 PDT"]
[Termination "XiaoKangZhong won by resignation"]

1. e4 {[%clk 0:02:49.8]} 1... c5 {[%clk 0:02:56.7]} 2. Nf3 {[%clk 0:02:41.6]}
2... Nc6 {[%clk 0:02:57.6]} 3. Bb5 {[%clk 0:02:38.6]} 3... e6 {[%clk 0:02:54.3]}
4. O-O {[%clk 0:02:35]} 4... Nge7 {[%clk 0:02:52.4]} 5. Re1 {[%clk 0:02:32]}
5... a6 {[%clk 0:02:52.4]} 6. Bf1 {[%clk 0:02:31.5]} 6... d5 {[%clk 0:02:52.1]}
7. exd5 {[%clk 0:02:31.2]} 7... Nxd5 {[%clk 0:02:51.6]} 8. d4 {[%clk 0:02:29.6]}
8... cxd4 {[%clk 0:02:50.6]} 9. Nxd4 {[%clk 0:02:29.9]} 9... Ndb4 {[%clk
0:02:51.2]} 10. c3 {[%clk 0:02:25.2]} 10... Nxd4 {[%clk 0:02:48.1]} 11. cxd4
{[%clk 0:02:22.9]} 11... Be7 {[%clk 0:02:46.5]} 12. Nc3 {[%clk 0:02:21.8]} 12...
O-O {[%clk 0:02:44.6]} 13. a3 {[%clk 0:02:17.4]} 13... Nd5 {[%clk 0:02:40.9]}
14. Ne4 {[%clk 0:02:10.4]} 14... b6 {[%clk 0:02:32.1]} 15. Qh5 {[%clk
0:01:55.6]} 15... Bb7 {[%clk 0:02:21.8]} 16. Bd3 {[%clk 0:01:54.5]} 16... h6
{[%clk 0:02:19.8]} 17. Bxh6 {[%clk 0:01:39.8]} 17... Nf6 {[%clk 0:02:18.3]} 18.
Nxf6+ {[%clk 0:01:35]} 18... Bxf6 {[%clk 0:02:18.3]} 19. Bxg7 {[%clk 0:01:34.6]}
1-0

[Event "Late-Titled-Tuesday-Blitz-August-29-2023"]
[Site "Chess.com"]
[Date "2023.08.29"]
[Round "9"]
[White "dorpato"]
[Black "TreinadorBR"]
[Result "0-1"]
[WhiteElo "2008"]
[BlackElo "2311"]
[TimeControl "180+1"]
[EndTime "15:38:42 PDT"]
[Termination "TreinadorBR won by resignation"]

1. e4 {[%clk 0:03:00.9]} 1... c5 {[%clk 0:02:59.4]} 2. Nc3 {[%clk 0:02:59.8]}
2... e6 {[%clk 0:02:59.3]} 3. g3 {[%clk 0:02:57.5]} 3... a6 {[%clk 0:02:59.6]}
4. Bg2 {[%clk 0:02:57.1]} 4... b5 {[%clk 0:03:00.2]} 5. d3 {[%clk 0:02:57.3]}
5... Bb7 {[%clk 0:03:00.6]} 6. Be3 {[%clk 0:02:55.9]} 6... Qc7 {[%clk 0:03:01]}
7. Qd2 {[%clk 0:02:55.7]} 7... Nf6 {[%clk 0:03:00.5]} 8. h3 {[%clk 0:02:55.3]}
8... d5 {[%clk 0:02:59.7]} 9. exd5 {[%clk 0:02:45.2]} 9... exd5 {[%clk
0:03:00.6]} 10. Bf4 {[%clk 0:02:44.6]} 10... Bd6 {[%clk 0:02:57.3]} 11. Qe2+
{[%clk 0:02:29.3]} 11... Kd8 {[%clk 0:02:56.9]} 12. Bxd6 {[%clk 0:02:23.8]}
12... Qxd6 {[%clk 0:02:57.8]} 13. O-O-O {[%clk 0:02:23.6]} 13... Re8 {[%clk
0:02:57.3]} 14. Qf3 {[%clk 0:02:21.8]} 14... b4 {[%clk 0:02:50.7]} 15. Nce2
{[%clk 0:02:18.3]} 15... Nc6 {[%clk 0:02:50.2]} 16. Nf4 {[%clk 0:02:17.5]} 16...
Nd4 {[%clk 0:02:49.6]} 17. Nxd5 {[%clk 0:01:56.2]} 17... Nxf3 {[%clk 0:02:49.2]}
18. Bxf3 {[%clk 0:01:53.3]} 18... Bxd5 {[%clk 0:02:48.4]} 19. Bxd5 {[%clk
0:01:53.6]} 19... Qxd5 {[%clk 0:02:49.3]} 20. Rh2 {[%clk 0:01:53.6]} 20... Kc7
{[%clk 0:02:44.4]} 21. f4 {[%clk 0:01:35.2]} 21... Re3 {[%clk 0:02:42.1]} 22.
Ne2 {[%clk 0:01:18]} 22... Rae8 {[%clk 0:02:41.4]} 23. Ng1 {[%clk 0:01:08]}
23... Qxa2 {[%clk 0:02:41.4]} 0-1

[Event "Late-Titled-Tuesday-Blitz-August-29-2023"]
[Site "Chess.com"]
[Date "2023.08.29"]
[Round "9"]
[White "Elshan1985"]
[Black "Road2GM3000"]
[Result "0-1"]
[WhiteElo "2764"]
[BlackElo "2512"]
[TimeControl "180+1"]
[EndTime "15:38:46 PDT"]
[Termination "Road2GM3000 won by resignation"]

1. Nf3 {[%clk 0:03:00.9]} 1... d5 {[%clk 0:02:59.8]} 2. g3 {[%clk 0:03:01.8]}
2... Nf6 {[%clk 0:02:59.5]} 3. Bg2 {[%clk 0:03:02.4]} 3... c6 {[%clk 0:03:00]}
4. O-O {[%clk 0:03:03]} 4... Bg4 {[%clk 0:02:59.9]} 5. c4 {[%clk 0:03:03.5]}
5... e6 {[%clk 0:03:00.3]} 6. cxd5 {[%clk 0:03:03.1]} 6... cxd5 {[%clk 0:02:59]}
7. Ne5 {[%clk 0:03:02.4]} 7... Bf5 {[%clk 0:02:58.8]} 8. g4 {[%clk 0:02:59.1]}
8... Be4 {[%clk 0:02:50.3]} 9. f3 {[%clk 0:02:58.7]} 9... Bg6 {[%clk 0:02:49.4]}
10. h4 {[%clk 0:02:57.4]} 10... Bxb1 {[%clk 0:02:41]} 11. Rxb1 {[%clk
0:02:56.9]} 11... Nc6 {[%clk 0:02:39.3]} 12. Nxc6 {[%clk 0:02:56.5]} 12... bxc6
{[%clk 0:02:39.2]} 13. Qa4 {[%clk 0:02:55.9]} 13... Qc7 {[%clk 0:02:37.7]} 14.
g5 {[%clk 0:02:52.8]} 14... Nh5 {[%clk 0:02:30.2]} 15. f4 {[%clk 0:02:53]} 15...
Bd6 {[%clk 0:02:25.8]} 16. e3 {[%clk 0:02:53.6]} 16... g6 {[%clk 0:02:20.2]} 17.
b4 {[%clk 0:02:51.5]} 17... O-O {[%clk 0:02:18.4]} 18. Bb2 {[%clk 0:02:51.5]}
18... Rfc8 {[%clk 0:01:59.2]} 19. Rfc1 {[%clk 0:02:50.2]} 19... Ng3 {[%clk
0:01:52.9]} 20. b5 {[%clk 0:02:49.4]} 20... Ne2+ {[%clk 0:01:47.2]} 21. Kf2
{[%clk 0:02:48]} 21... Nxc1 {[%clk 0:01:47.8]} 22. Rxc1 {[%clk 0:02:47.9]} 22...
c5 {[%clk 0:01:44.9]} 23. h5 {[%clk 0:02:46.2]} 23... Qb6 {[%clk 0:01:29.3]} 24.
hxg6 {[%clk 0:02:45.8]} 24... fxg6 {[%clk 0:01:27.3]} 25. Bh3 {[%clk 0:02:45.9]}
25... Re8 {[%clk 0:01:24.9]} 26. Rh1 {[%clk 0:02:35.1]} 26... a6 {[%clk
0:01:23.2]} 27. Qc2 {[%clk 0:02:29.8]} 27... axb5 {[%clk 0:01:17.4]} 28. Qa4
{[%clk 0:02:30.7]} 28... bxa4 {[%clk 0:01:16.9]} 0-1

[Event "Late-Titled-Tuesday-Blitz-August-29-2023"]
[Site "Chess.com"]
[Date "2023.08.29"]
[Round "9"]
[White "ferrufino64"]
[Black "maurovargas01"]
[Result "1-0"]
[WhiteElo "2138"]
[BlackElo "1883"]
[TimeControl "180+1"]
[EndTime "15:38:59 PDT"]
[Termination "ferrufino64 won by checkmate"]

1. e4 {[%clk 0:02:56.5]} 1... d5 {[%clk 0:02:59.1]} 2. exd5 {[%clk 0:02:56.4]}
2... Qxd5 {[%clk 0:02:59.6]} 3. Nc3 {[%clk 0:02:56.8]} 3... Qa5 {[%clk
0:02:49.7]} 4. d4 {[%clk 0:02:54.6]} 4... Nf6 {[%clk 0:02:36.8]} 5. Bc4 {[%clk
0:02:52.5]} 5... c6 {[%clk 0:02:35.9]} 6. Ne2 {[%clk 0:02:52.1]} 6... Bg4 {[%clk
0:02:33.4]} 7. f3 {[%clk 0:02:51.7]} 7... Bf5 {[%clk 0:02:33.3]} 8. O-O {[%clk
0:02:51.1]} 8... e6 {[%clk 0:02:31.7]} 9. Ng3 {[%clk 0:02:51.1]} 9... Bg6 {[%clk
0:02:31.5]} 10. f4 {[%clk 0:02:51.6]} 10... c5 {[%clk 0:02:31.6]} 11. f5 {[%clk
0:02:50.4]} 11... exf5 {[%clk 0:02:31.3]} 12. Re1+ {[%clk 0:02:49.4]} 12... Be7
{[%clk 0:02:30.9]} 13. Qe2 {[%clk 0:02:46.6]} 13... Qd8 {[%clk 0:02:21.8]} 14.
Bg5 {[%clk 0:02:40.7]} 14... cxd4 {[%clk 0:02:19.6]} 15. Bxf6 {[%clk 0:02:38.4]}
15... gxf6 {[%clk 0:02:19.3]} 16. Nd5 {[%clk 0:02:37.5]} 16... Nc6 {[%clk
0:02:18.2]} 17. Bb5 {[%clk 0:02:33.1]} 17... Kf8 {[%clk 0:02:17.4]} 18. Bxc6
{[%clk 0:02:31.9]} 18... bxc6 {[%clk 0:02:08.9]} 19. Nxe7 {[%clk 0:02:32]} 19...
c5 {[%clk 0:02:04.4]} 20. Qd2 {[%clk 0:01:54.2]} 20... Kg7 {[%clk 0:01:55.2]}
21. Ngxf5+ {[%clk 0:01:50.9]} 21... Bxf5 {[%clk 0:01:49]} 22. Nxf5+ {[%clk
0:01:50.4]} 22... Kg6 {[%clk 0:01:47.2]} 23. Qh6+ {[%clk 0:01:42.4]} 23... Kxf5
{[%clk 0:01:46]} 24. Qh5+ {[%clk 0:01:43.3]} 24... Kf4 {[%clk 0:01:44.9]} 25.
g3# {[%clk 0:01:43.7]} 1-0

[Event "Late-Titled-Tuesday-Blitz-August-29-2023"]
[Site "Chess.com"]
[Date "2023.08.29"]
[Round "9"]
[White "Fonsofan"]
[Black "Arystanner"]
[Result "1-0"]
[WhiteElo "2712"]
[BlackElo "2859"]
[TimeControl "180+1"]
[EndTime "15:39:01 PDT"]
[Termination "Fonsofan won by resignation"]

1. Nf3 {[%clk 0:02:41.1]} 1... Nf6 {[%clk 0:02:57.6]} 2. c4 {[%clk 0:02:41.1]}
2... g6 {[%clk 0:02:58.2]} 3. Nc3 {[%clk 0:02:40.8]} 3... Bg7 {[%clk 0:02:59]}
4. d4 {[%clk 0:02:40.1]} 4... d6 {[%clk 0:02:59.8]} 5. e4 {[%clk 0:02:36.8]}
5... O-O {[%clk 0:03:00.7]} 6. Be2 {[%clk 0:02:36.6]} 6... e5 {[%clk 0:02:59.8]}
7. dxe5 {[%clk 0:02:35.6]} 7... dxe5 {[%clk 0:02:59.7]} 8. Qxd8 {[%clk
0:02:36.5]} 8... Rxd8 {[%clk 0:03:00.1]} 9. Bg5 {[%clk 0:02:37.4]} 9... Re8
{[%clk 0:02:58.8]} 10. Nd5 {[%clk 0:02:36.1]} 10... Nxd5 {[%clk 0:02:58.8]} 11.
cxd5 {[%clk 0:02:36.8]} 11... c6 {[%clk 0:02:59.5]} 12. Bc4 {[%clk 0:02:35.8]}
12... b5 {[%clk 0:02:59.7]} 13. Bb3 {[%clk 0:02:34]} 13... a5 {[%clk 0:03:00.3]}
14. a4 {[%clk 0:02:32.2]} 14... b4 {[%clk 0:02:51.5]} 15. O-O {[%clk 0:02:30.8]}
15... Bb7 {[%clk 0:02:47.2]} 16. Rfd1 {[%clk 0:02:28.3]} 16... Nd7 {[%clk
0:02:44.4]} 17. Rac1 {[%clk 0:02:25.7]} 17... cxd5 {[%clk 0:02:42.6]} 18. Rc7
{[%clk 0:02:22.3]} 18... Rad8 {[%clk 0:01:34.2]} 19. Bxd8 {[%clk 0:02:20.8]}
19... Rxd8 {[%clk 0:01:35.1]} 20. Bxd5 {[%clk 0:01:50.9]} 1-0

[Event "Late-Titled-Tuesday-Blitz-August-29-2023"]
[Site "Chess.com"]
[Date "2023.08.29"]
[Round "9"]
[White "ritanovikova"]
[Black "GMMikhailKazakov"]
[Result "0-1"]
[WhiteElo "2150"]
[BlackElo "2335"]
[TimeControl "180+1"]
[EndTime "15:40:26 PDT"]
[Termination "GMMikhailKazakov won by resignation"]

1. d4 {[%clk 0:03:00]} 1... Nf6 {[%clk 0:02:52.8]} 2. Bf4 {[%clk 0:02:58.4]}
2... g6 {[%clk 0:02:50.6]} 3. c3 {[%clk 0:02:56.8]} 3... Bg7 {[%clk 0:02:50.8]}
4. h3 {[%clk 0:02:49.9]} 4... O-O {[%clk 0:02:49]} 5. Nf3 {[%clk 0:02:49.3]}
5... d6 {[%clk 0:02:48.7]} 6. Nbd2 {[%clk 0:02:47.4]} 6... c5 {[%clk 0:02:47.6]}
7. e3 {[%clk 0:02:46.1]} 7... Be6 {[%clk 0:02:46.7]} 8. Bc4 {[%clk 0:02:44.3]}
8... Bxc4 {[%clk 0:02:28]} 9. Nxc4 {[%clk 0:02:43.4]} 9... cxd4 {[%clk
0:02:25.7]} 10. exd4 {[%clk 0:02:42.5]} 10... d5 {[%clk 0:02:19.4]} 11. Ne3
{[%clk 0:02:37.1]} 11... Nc6 {[%clk 0:02:18.7]} 12. Ne5 {[%clk 0:02:35.1]} 12...
e6 {[%clk 0:02:09.9]} 13. Nxc6 {[%clk 0:02:34.1]} 13... bxc6 {[%clk 0:02:08.2]}
14. Be5 {[%clk 0:02:33.7]} 14... Nd7 {[%clk 0:02:02.9]} 15. Bxg7 {[%clk
0:02:26.5]} 15... Kxg7 {[%clk 0:02:03.8]} 16. O-O {[%clk 0:02:22.1]} 16... a5
{[%clk 0:01:59.9]} 17. Qd2 {[%clk 0:02:18.1]} 17... Qb6 {[%clk 0:01:57]} 18. Ng4
{[%clk 0:02:16.7]} 18... Qd8 {[%clk 0:01:32.8]} 19. Qh6+ {[%clk 0:02:07]} 19...
Kg8 {[%clk 0:01:29.4]} 20. Ne5 {[%clk 0:02:02.2]} 20... Nxe5 {[%clk 0:01:26.2]}
21. dxe5 {[%clk 0:02:01.4]} 21... Qb8 {[%clk 0:01:26.8]} 22. f4 {[%clk
0:01:34.2]} 22... Qxb2 {[%clk 0:01:23.2]} 23. g4 {[%clk 0:01:30.5]} 23... Qxc3
{[%clk 0:01:19.9]} 24. Kg2 {[%clk 0:01:22.3]} 24... Rab8 {[%clk 0:01:17.4]} 0-1

[Event "Late-Titled-Tuesday-Blitz-August-29-2023"]
[Site "Chess.com"]
[Date "2023.08.29"]
[Round "9"]
[White "AryanTari"]
[Black "XDPS"]
[Result "1-0"]
[WhiteElo "2935"]
[BlackElo "2865"]
[TimeControl "180+1"]
[EndTime "15:40:43 PDT"]
[Termination "AryanTari won by resignation"]

1. d4 {[%clk 0:02:59.7]} 1... d5 {[%clk 0:02:58.8]} 2. Nf3 {[%clk 0:02:59.3]}
2... Nf6 {[%clk 0:02:58.7]} 3. c4 {[%clk 0:02:59]} 3... c6 {[%clk 0:02:58.9]} 4.
Qc2 {[%clk 0:02:53.5]} 4... dxc4 {[%clk 0:02:56.5]} 5. Qxc4 {[%clk 0:02:53]}
5... Bf5 {[%clk 0:02:56.9]} 6. g3 {[%clk 0:02:52.4]} 6... e6 {[%clk 0:02:57.2]}
7. Bg2 {[%clk 0:02:52.4]} 7... Be7 {[%clk 0:02:57.2]} 8. O-O {[%clk 0:02:52.7]}
8... O-O {[%clk 0:02:57.2]} 9. Rd1 {[%clk 0:02:48.8]} 9... Nbd7 {[%clk
0:02:45.1]} 10. e3 {[%clk 0:02:45.2]} 10... h6 {[%clk 0:02:41.3]} 11. Nc3 {[%clk
0:02:44.5]} 11... Rc8 {[%clk 0:02:37.7]} 12. b4 {[%clk 0:02:24.5]} 12... a5
{[%clk 0:02:34.7]} 13. a3 {[%clk 0:02:23.9]} 13... axb4 {[%clk 0:02:31.1]} 14.
axb4 {[%clk 0:02:23.9]} 14... Qb6 {[%clk 0:02:31.8]} 15. Ba3 {[%clk 0:02:19.6]}
15... Nd5 {[%clk 0:02:16.6]} 16. Na4 {[%clk 0:02:19.8]} 16... Qc7 {[%clk
0:02:06.1]} 17. Nc5 {[%clk 0:02:09.2]} 17... Bh7 {[%clk 0:02:00.5]} 18. Bb2
{[%clk 0:02:00]} 18... b6 {[%clk 0:01:47.4]} 19. Nxd7 {[%clk 0:01:58]} 19...
Qxd7 {[%clk 0:01:48.3]} 20. Ne5 {[%clk 0:01:58.2]} 20... Qc7 {[%clk 0:01:13.1]}
21. b5 {[%clk 0:01:49.7]} 21... cxb5 {[%clk 0:01:13.1]} 22. Qxb5 {[%clk
0:01:50.6]} 22... Rfd8 {[%clk 0:00:35.2]} 23. Rdc1 {[%clk 0:01:49.3]} 23... Qb7
{[%clk 0:00:27.1]} 24. Nc6 {[%clk 0:01:42.7]} 24... Re8 {[%clk 0:00:24]} 25. Ra7
{[%clk 0:01:32]} 1-0

[Event "Late-Titled-Tuesday-Blitz-August-29-2023"]
[Site "Chess.com"]
[Date "2023.08.29"]
[Round "9"]
[White "Cambek64"]
[Black "DeTimmerman"]
[Result "0-1"]
[WhiteElo "2506"]
[BlackElo "2683"]
[TimeControl "180+1"]
[EndTime "15:40:58 PDT"]
[Termination "DeTimmerman won by resignation"]

1. e4 {[%clk 0:02:57.8]} 1... e5 {[%clk 0:03:00]} 2. Nf3 {[%clk 0:02:57.2]} 2...
Nc6 {[%clk 0:02:59.4]} 3. Bc4 {[%clk 0:02:57.3]} 3... Nf6 {[%clk 0:02:59.4]} 4.
d3 {[%clk 0:02:56.4]} 4... Be7 {[%clk 0:02:59.7]} 5. Nc3 {[%clk 0:02:53.2]} 5...
O-O {[%clk 0:03:00.6]} 6. O-O {[%clk 0:02:52.7]} 6... d6 {[%clk 0:03:00.7]} 7.
h3 {[%clk 0:02:52.6]} 7... Kh8 {[%clk 0:03:00.6]} 8. Nh2 {[%clk 0:02:47.9]} 8...
Ng8 {[%clk 0:02:55.4]} 9. f4 {[%clk 0:02:47.3]} 9... f5 {[%clk 0:02:53]} 10.
exf5 {[%clk 0:02:46.7]} 10... Bxf5 {[%clk 0:02:53.9]} 11. g4 {[%clk 0:02:44.8]}
11... Bd7 {[%clk 0:02:49.6]} 12. f5 {[%clk 0:02:43.1]} 12... Bg5 {[%clk
0:02:49.9]} 13. Ne4 {[%clk 0:02:24.2]} 13... Bxc1 {[%clk 0:02:48.5]} 14. Rxc1
{[%clk 0:02:15.2]} 14... Qh4 {[%clk 0:02:42.2]} 15. Kg2 {[%clk 0:02:13.7]} 15...
Qd8 {[%clk 0:01:38.7]} 16. Nf3 {[%clk 0:01:53.6]} 16... Nce7 {[%clk 0:01:33.5]}
17. Bb3 {[%clk 0:01:48.4]} 17... Bxf5 {[%clk 0:01:19.3]} 18. gxf5 {[%clk
0:01:46.8]} 18... Nxf5 {[%clk 0:01:20.2]} 19. Qd2 {[%clk 0:01:45.5]} 19... d5
{[%clk 0:01:16.1]} 20. Ng3 {[%clk 0:01:44.2]} 20... Nxg3 {[%clk 0:01:11.9]} 21.
Kxg3 {[%clk 0:01:43.4]} 21... Qd6 {[%clk 0:01:12.4]} 22. Kg2 {[%clk 0:01:42.1]}
22... Ne7 {[%clk 0:01:08.5]} 23. Qg5 {[%clk 0:01:12.7]} 23... Ng6 {[%clk
0:01:07.7]} 24. Nh4 {[%clk 0:00:54.6]} 24... Nf4+ {[%clk 0:01:07.1]} 25. Kg1
{[%clk 0:00:33.2]} 25... Nxh3+ {[%clk 0:01:05.6]} 0-1

[Event "Late-Titled-Tuesday-Blitz-August-29-2023"]
[Site "Chess.com"]
[Date "2023.08.29"]
[Round "9"]
[White "JoshuaGK27"]
[Black "Fleetw00dMac"]
[Result "1-0"]
[WhiteElo "2420"]
[BlackElo "2454"]
[TimeControl "180+1"]
[EndTime "15:40:58 PDT"]
[Termination "JoshuaGK27 won by resignation"]

1. Nf3 {[%clk 0:03:00.9]} 1... Nf6 {[%clk 0:02:59.5]} 2. b3 {[%clk 0:02:58.3]}
2... g6 {[%clk 0:02:59.2]} 3. Bb2 {[%clk 0:02:58.9]} 3... Bg7 {[%clk 0:02:59.1]}
4. g3 {[%clk 0:02:59.5]} 4... O-O {[%clk 0:02:58.7]} 5. Bg2 {[%clk 0:03:00.2]}
5... d6 {[%clk 0:02:58.6]} 6. O-O {[%clk 0:02:58.9]} 6... e5 {[%clk 0:02:58.2]}
7. d3 {[%clk 0:02:59]} 7... Nc6 {[%clk 0:02:49.5]} 8. c4 {[%clk 0:02:57.1]} 8...
Re8 {[%clk 0:02:48.1]} 9. Nc3 {[%clk 0:02:46.8]} 9... e4 {[%clk 0:02:40]} 10.
dxe4 {[%clk 0:02:25.9]} 10... Nxe4 {[%clk 0:02:39.3]} 11. Qc1 {[%clk 0:02:25.8]}
11... Nc5 {[%clk 0:02:14.1]} 12. Re1 {[%clk 0:02:05.3]} 12... Bf5 {[%clk
0:01:57.1]} 13. Nd5 {[%clk 0:02:02.1]} 13... Be4 {[%clk 0:01:45.7]} 14. Bxg7
{[%clk 0:01:56.3]} 14... Kxg7 {[%clk 0:01:45.4]} 15. Qb2+ {[%clk 0:01:54]} 15...
f6 {[%clk 0:01:45.3]} 16. Rad1 {[%clk 0:01:43.4]} 16... a5 {[%clk 0:01:40.7]}
17. h4 {[%clk 0:01:25.9]} 17... Bxd5 {[%clk 0:01:35.4]} 18. Rxd5 {[%clk
0:01:20.7]} 18... Ne5 {[%clk 0:01:30.7]} 19. h5 {[%clk 0:01:04.9]} 19... Qe7
{[%clk 0:01:23.9]} 20. Rdd1 {[%clk 0:00:42.5]} 20... Nxf3+ {[%clk 0:01:17.9]}
21. Bxf3 {[%clk 0:00:35.1]} 21... Qe5 {[%clk 0:01:17]} 22. Qc2 {[%clk
0:00:32.4]} 22... gxh5 {[%clk 0:01:14.7]} 23. Kg2 {[%clk 0:00:30.9]} 23... h4
{[%clk 0:01:09]} 24. Rh1 {[%clk 0:00:30.9]} 24... Qg5 {[%clk 0:01:08.4]} 25.
Rxh4 {[%clk 0:00:28.6]} 25... Rh8 {[%clk 0:01:06.9]} 26. Rg4 {[%clk 0:00:27.9]}
1-0

[Event "Late-Titled-Tuesday-Blitz-August-29-2023"]
[Site "Chess.com"]
[Date "2023.08.29"]
[Round "9"]
[White "nassimzrikem"]
[Black "Onthequiet"]
[Result "0-1"]
[WhiteElo "2160"]
[BlackElo "2368"]
[TimeControl "180+1"]
[EndTime "15:41:04 PDT"]
[Termination "Onthequiet won by resignation"]

1. e4 {[%clk 0:02:58.1]} 1... c6 {[%clk 0:02:59.4]} 2. Nc3 {[%clk 0:02:57.7]}
2... d5 {[%clk 0:02:59.8]} 3. Qf3 {[%clk 0:02:58.6]} 3... dxe4 {[%clk
0:02:58.7]} 4. Nxe4 {[%clk 0:02:59.5]} 4... Nf6 {[%clk 0:02:57.9]} 5. Bc4 {[%clk
0:02:58.9]} 5... Nbd7 {[%clk 0:02:52.9]} 6. d4 {[%clk 0:02:57.9]} 6... e6 {[%clk
0:02:47.4]} 7. c3 {[%clk 0:02:54.7]} 7... Be7 {[%clk 0:02:47.2]} 8. Ne2 {[%clk
0:02:51.5]} 8... O-O {[%clk 0:02:45.2]} 9. N2g3 {[%clk 0:02:50.7]} 9... Re8
{[%clk 0:02:33.8]} 10. O-O {[%clk 0:02:48.9]} 10... Nf8 {[%clk 0:02:33.4]} 11.
Bg5 {[%clk 0:02:30.7]} 11... Ng6 {[%clk 0:02:27.3]} 12. Nxf6+ {[%clk 0:02:28.9]}
12... Bxf6 {[%clk 0:02:27.5]} 13. Bxf6 {[%clk 0:02:28.5]} 13... Qxf6 {[%clk
0:02:27.9]} 14. Qxf6 {[%clk 0:02:28.9]} 14... gxf6 {[%clk 0:02:27.5]} 15. Nh5
{[%clk 0:02:28.3]} 15... Rd8 {[%clk 0:02:27.2]} 16. Nxf6+ {[%clk 0:02:28]} 16...
Kg7 {[%clk 0:02:27.9]} 17. Nh5+ {[%clk 0:02:26.7]} 17... Kh6 {[%clk 0:02:28.2]}
18. Ng3 {[%clk 0:02:22.9]} 18... Nf4 {[%clk 0:02:25.4]} 19. Rae1 {[%clk
0:02:21.3]} 19... b5 {[%clk 0:02:24.3]} 20. Bb3 {[%clk 0:02:21.1]} 20... a5
{[%clk 0:02:23.5]} 21. Re4 {[%clk 0:02:21.4]} 21... Ng6 {[%clk 0:02:16.1]} 22.
f4 {[%clk 0:02:19.8]} 22... a4 {[%clk 0:01:53.9]} 23. Bc2 {[%clk 0:02:08.5]}
23... f5 {[%clk 0:01:53.3]} 24. Re3 {[%clk 0:02:04.1]} 24... Ne7 {[%clk
0:01:47.3]} 25. Rfe1 {[%clk 0:02:00.8]} 25... Nd5 {[%clk 0:01:44.4]} 26. Rxe6+
{[%clk 0:01:59.4]} 26... Bxe6 {[%clk 0:01:44.4]} 27. Rxe6+ {[%clk 0:01:59.8]}
27... Kg7 {[%clk 0:01:43.6]} 28. Nxf5+ {[%clk 0:01:59.7]} 28... Kh8 {[%clk
0:01:43.4]} 29. g3 {[%clk 0:01:53.3]} 29... a3 {[%clk 0:01:41.7]} 30. bxa3
{[%clk 0:01:49]} 30... Nxc3 {[%clk 0:01:41.6]} 31. Rxc6 {[%clk 0:01:41.2]} 31...
Rxa3 {[%clk 0:01:36]} 32. Rc7 {[%clk 0:01:15.3]} 32... Ne2+ {[%clk 0:00:58.3]}
33. Kf1 {[%clk 0:01:14.9]} 33... Rc3 {[%clk 0:00:58.6]} 34. Nh6 {[%clk
0:01:11.3]} 34... Rxc7 {[%clk 0:00:55.7]} 35. Kxe2 {[%clk 0:01:04.9]} 35...
Rxc2+ {[%clk 0:00:55.2]} 36. Kd3 {[%clk 0:01:05.2]} 36... Rc7 {[%clk 0:00:52.6]}
0-1